fUSD/lending_fUSD_20260426
["ID","MTS","AMOUNT","RATE_DAILY","PERIOD"]
[421176977,1777210235411,-152.0,0.00023098,2]
[421176978,1777210235421,-152.0,0.00023098,2]
[421176979,1777210235431,-743.50770149,0.00023098,2]
[421176980,1777210235442,-152.0,0.00023098,2]
[421176981,1777210235452,-160.0,0.00023098,2]
[421176982,1777210235463,-151.0,0.00023098,2]
[421176983,1777210235473,-181.08010149,0.00023098,2]
[421176984,1777210235483,-156.61303016,0.00023098,2]
[421176985,1777210235494,-174.61919141,0.00023098,2]
[421176986,1777210235504,-599.60298507,0.00023098,2]
[421176987,1777210235515,-279.9045709,0.00023098,2]
[421176988,1777210235525,-1000.0,0.00023098,2]
[421176989,1777210235537,-181.08010149,0.00023098,2]
[421176990,1777210235547,-1000.0,0.00023098,2]
[421176991,1777210235558,-1000.0,0.00023098,2]
[421176992,1777210235568,-1000.0,0.00023098,2]
[421176993,1777210235579,-1000.0,0.00023098,2]
[421176994,1777210235589,-1000.0,0.00023098,2]
[421176995,1777210235599,-1000.0,0.00023098,2]
[421176996,1777210235610,-1000.0,0.00023098,2]
[421176997,1777210235620,-1000.0,0.00023098,2]
[421176998,1777210235631,-1000.0,0.00023098,2]
[421176999,1777210235641,-151.0,0.00023153,2]
[421177000,1777210235652,-500.0,0.00023194,2]
[421177001,1777210235662,-151.0,0.00023208,2]
[421177002,1777210235674,-151.0,0.00023263,2]
[421177003,1777210235683,-151.0,0.00023318,2]
[421177004,1777210235694,-2341.197,0.00023365,3]
[421177005,1777210235704,-166.02,0.00023365,3]
[421177006,1777210235716,-151.0,0.00023373,2]
[421177007,1777210235727,-151.0,0.00023428,2]
[421177008,1777210235738,-187.78006525,0.00023646,2]
[421177009,1777210235748,-1280.88388878,0.00023646,2]
[421177010,1777210235759,-200.0,0.00023646,2]
[421177011,1777210235769,-187.78006525,0.00023646,2]
[421177012,1777210235780,-771.01748645,0.00023646,2]
[421177013,1777210235791,-181.08010149,0.00023646,2]
[421177014,1777210235801,-621.78829552,0.00023646,2]
[421177015,1777210235811,-290.26104003,0.00023646,2]
[421177016,1777210235821,-187.78006525,0.00023646,2]
[421177017,1777210235832,-19184.00337145,0.00023729,2]
[421177018,1777210235842,-151.0,0.00023729,2]
[421177019,1777210235853,-151.0,0.00023729,2]
[421177020,1777210235864,-150.0,0.00023796,2]
[421177021,1777210235875,-289.0,0.00024,2]
[421177022,1777210235885,-571.0,0.00024,2]
[421177023,1777210235895,-2357.84,0.00024171,60]
[421177024,1777210235906,-1616.63,0.00024171,60]
[421177025,1777210235916,-194.72792766,0.00024194,2]
[421177026,1777210235926,-200.0,0.00024194,2]
[421177027,1777210235937,-1328.27659266,0.00024194,2]
[421177028,1777210235947,-194.72792766,0.00024194,2]
[421177029,1777210235957,-799.54513345,0.00024194,2]
[421177030,1777210235967,-282.6572317,0.00024194,2]
[421177031,1777210235977,-644.79446246,0.00024194,2]
[421177032,1777210235987,-211.03900807,0.00024194,2]
[421177033,1777210235998,-194.72792766,0.00024194,2]
[421177034,1777210236008,-160.0,0.00024467,2]
[421177035,1777210236018,-187.78006525,0.00024467,2]
[421177036,1777210236029,-150.0,0.00024736,2]
[421177037,1777210236039,-201.93286099,0.00024742,2]
[421177038,1777210236050,-200.0,0.00024742,2]
[421177039,1777210236060,-1377.42282659,0.00024742,2]
[421177040,1777210236072,-201.93286099,0.00024742,2]
[421177041,1777210236083,-829.12830338,0.00024742,2]
[421177042,1777210236093,-668.65185757,0.00024742,2]
[421177043,1777210236103,-201.93286099,0.00024742,2]
[421177044,1777210236114,-305.0,0.00025,2]
[421177045,1777210236124,-589.0,0.00025,2]
[421177046,1777210236134,-209.40437684,0.0002529,2]
[421177047,1777210236144,-200.0,0.0002529,2]
[421177048,1777210236156,-1428.38747117,0.0002529,2]
[421177049,1777210236166,-209.40437684,0.0002529,2]
[421177050,1777210236177,-194.84736151,0.0002529,2]
[421177051,1777210236187,-693.3919763,0.0002529,2]
[421177052,1777210236197,-209.40437684,0.0002529,2]
[421177053,1777210236207,-1138.12548307,0.00025399,2]
[421177054,1777210236217,-558.25,0.0002549,30]
[421177055,1777210236227,-189.85,0.00025675,2]
[421177056,1777210236237,-194.72792766,0.00025836,2]
[421177057,1777210236247,-599.60298507,0.00025837,2]
[421177058,1777210236257,-646.65982734,0.00025837,2]
[421177059,1777210236267,-206.91055054,0.00025838,2]
[421177060,1777210236278,-1411.37660292,0.00025838,2]
[421177061,1777210236288,-200.0,0.00025838,2]
[421177062,1777210236299,-206.91055052,0.00025838,2]
[421177063,1777210236310,-685.13427325,0.00025838,2]
[421177064,1777210236321,-206.91055052,0.00025838,2]
[421177065,1777210236331,-19184.00337145,0.00025843,2]
[421177066,1777210236342,-2355.29,0.00026257,60]
[421177067,1777210236352,-250.0,0.00026315,10]
[421177068,1777210236363,-200.0,0.00026386,2]
[421177069,1777210236375,-367.74815235,0.00026575,2]
[421177070,1777210236385,-478.08,0.00026611,2]
[421177071,1777210236396,-189.85,0.00026614,2]
[421177072,1777210236406,-223.87,0.00026616,30]
[421177073,1777210236417,-173.36508203,0.00027205,2]
[421177074,1777210236428,-2000.0,0.00027296,2]
[421177075,1777210236439,-26122.859,0.00027296,2]
[421177076,1777210236450,-161.0,0.0002739,5]
[421177077,1777210236461,-151.0,0.00027394,7]
[421177078,1777210236471,-500.0,0.00027396,2]
[421177079,1777210236483,-151.0,0.00027397,2]
[421177080,1777210236495,-151.0,0.00027397,2]
[421177081,1777210236506,-151.0,0.00027397,2]
[421177082,1777210236517,-500.0,0.00027397,2]
[421177083,1777210236527,-1500.0,0.00027397,2]
[421177084,1777210236538,-25126.18,0.00027397,10]
[421177085,1777210236549,-161.0,0.0002741,5]
[421177086,1777210236560,-500.0,0.00027452,2]
[421177087,1777210236570,-500.0,0.00027507,2]
[421177088,1777210236581,-189.85,0.00027554,2]
[421177089,1777210236591,-216.0,0.00027562,5]
[421177090,1777210236601,-500.0,0.00027562,2]
[421177091,1777210236611,-500.0,0.00027617,2]
[421177092,1777210236622,-1282.0,0.00027671,15]
[421177093,1777210236632,-500.0,0.00027672,2]
[421177094,1777210236642,-500.0,0.000277,10]
[421177095,1777210236653,-500.0,0.00027727,2]
[421177096,1777210236663,-500.0,0.00027782,2]
[421177097,1777210236673,-1000.0,0.000278,10]
[421177098,1777210236683,-500.0,0.00027837,2]
[421177099,1777210236693,-500.0,0.00027892,2]
[421177100,1777210236705,-1600.0,0.000279,10]
[421177101,1777210236716,-1282.0,0.00027945,15]
[421177102,1777210236727,-500.0,0.00027947,2]
[421177103,1777210236737,-19184.00337145,0.00027957,2]
[421177104,1777210236748,-5000.0,0.00027999,2]
[421177105,1777210236759,-209.8032625,0.00027999,2]
[421177106,1777210236769,-557.52,0.00028,2]
[421177107,1777210236779,-500.0,0.00028002,2]
[421177108,1777210236790,-195.2164384,0.00028012,2]
[421177109,1777210236800,-557.52,0.00028047,2]
[421177110,1777210236811,-500.0,0.00028057,2]
[421177111,1777210236822,-557.52,0.00028089,2]
[421177112,1777210236833,-557.52,0.00028089,2]
[421177113,1777210236843,-557.52,0.00028089,2]
[421177114,1777210236853,-557.52,0.00028089,2]
[421177115,1777210236864,-151.63143135,0.00028089,2]
[421177116,1777210236875,-557.52,0.0002809,2]
[421177117,1777210236886,-151.0,0.00028096,7]
[421177118,1777210236896,-300.0,0.00028098,10]
[421177119,1777210236909,-666.0,0.00028098,10]
[421177120,1777210236919,-300.0,0.00028098,10]
[421177121,1777210236932,-500.0,0.00028098,15]
[421177122,1777210236943,-500.0,0.00028098,15]
[421177123,1777210236953,-500.0,0.00028098,15]
[421177124,1777210236964,-500.0,0.00028098,15]
[421177125,1777210236974,-500.0,0.00028098,15]
[421177126,1777210236987,-500.0,0.00028098,15]
[421177127,1777210236998,-274.0,0.00028098,5]
[421177128,1777210237008,-187620.74702484,0.00028099,2]
[421177129,1777210237024,-32286.26174849,0.00028099,2]
[421177130,1777210237037,-2247.63760254,0.00028099,2]
[421177131,1777210237050,-2012.78354579,0.00028099,2]
[421177132,1777210237077,-34638.54207752,0.00028099,2]
[421177133,1777210237090,-38143.03581834,0.00028099,2]
[421177134,1777210237109,-7604.2,0.00028099,2]
[421177136,1777210239053,-297.656992,0.00021918,2]
[421177137,1777210239068,-297.656992,0.00022857,2]
[421177138,1777210239081,-151.184154,0.00023729,2]
[421177139,1777210239093,-27339.67925572,0.00028098,5]
[421177140,1777210239105,-40656.15921887,0.00028099,2]
[421177144,1777210240673,-13.32849964,0.00024418,2]
[421177145,1777210241648,-400.0,0.00021613,2]
[421177157,1777210243541,-200.24462048,0.00021613,2]
[421177158,1777210243554,-169.82150036,0.00024418,2]
[421177159,1777210243566,-55.62258079,0.00027256,2]
[421177160,1777210243581,-189.54285411,0.00027256,2]
[421177161,1777210243593,-207.0,0.0002739,5]
[421177162,1777210243605,-1500.0,0.00027397,2]
[421177163,1777210243617,-161.0,0.0002741,5]
[421177164,1777210243629,-39630.73106918,0.00028099,2]
[421177165,1777210243657,-4673.87,0.00028099,2]
[421177168,1777210243857,-1110486.03189443,0.00028099,2]
[421177169,1777210243870,-151.0,0.00028099,7]
[421177170,1777210243882,-685.8,0.000281,7]
[421177171,1777210243894,-20510.46,0.000281,7]
[421177172,1777210243906,-162.25551732,0.000281,7]
[421177173,1777210243917,-1830.79,0.000281,7]
[421177174,1777210243930,-500.0,0.00028112,2]
[421177175,1777210243941,-432.24591674,0.00028144,2]
[421177176,1777210243953,-500.0,0.00028167,2]
[421177177,1777210243965,-1282.0,0.00028219,15]
[421177178,1777210243977,-1138.12548307,0.00028299,2]
[421177179,1777210243988,-151.0,0.0002834,7]
[421177180,1777210244000,-458.2,0.00028342,60]
[421177181,1777210244012,-1063.40729114,0.00028443,15]
[421177182,1777210244025,-152.75160298,0.00028493,2]
[421177183,1777210244036,-152.74666324,0.00028493,30]
[421177184,1777210244047,-1282.0,0.00028493,15]
[421177185,1777210244058,-621.78829552,0.00028576,2]
[421177186,1777210244071,-670.58624095,0.00028576,2]
[421177187,1777210244082,-193.56,0.00028747,2]
[421177188,1777210244094,-500.0,0.00028767,2]
[421177189,1777210244105,-210.53566661,0.00028767,2]
[421177190,1777210244117,-1282.0,0.00028767,15]
[421177191,1777210244128,-1282.0,0.00029041,15]
[421177192,1777210244140,-287.85465252,0.00029064,2]
[421177193,1777210244151,-191.5,0.00029293,7]
[421177194,1777210244162,-1830.79,0.000293,7]
[421177195,1777210244174,-1282.0,0.00029315,15]
[421177196,1777210244186,-1983.93724613,0.000294,30]
[421177197,1777210244197,-447.73,0.00029467,30]
[421177198,1777210244208,-1282.0,0.00029589,15]
[421177199,1777210244220,-685.8,0.000296,7]
[421177200,1777210244231,-20510.46,0.000296,7]
[421177201,1777210244243,-1282.0,0.00029863,15]
[421177202,1777210244255,-500.0,0.00029999,7]
[421177203,1777210244267,-295.90885131,0.00029999,10]
[421177204,1777210244278,-500.0,0.00029999,15]
[421177205,1777210244290,-2000.0,0.0003,14]
[421177206,1777210244301,-3335.4622618,0.0003,10]
[421177207,1777210244312,-400.0,0.0003,20]
[421177208,1777210244325,-200000.0,0.0003,2]
[421177209,1777210244337,-673.47399155,0.0003,12]
[421177210,1777210244348,-158.0,0.0003,30]
[421177211,1777210244360,-5000.0,0.0003,15]
[421177212,1777210244372,-150.0,0.0003,2]
[421177213,1777210244384,-2319.24,0.0003,30]
[421177214,1777210244395,-19184.00337145,0.00030072,2]
[421177215,1777210244406,-195.21643836,0.00030082,2]
[421177216,1777210244418,-169.23266219,0.0003013,20]
[421177217,1777210244429,-559.829999,0.0003013,2]
[421177218,1777210244441,-150.73530493,0.00030217,90]
[421177219,1777210244452,-800.0,0.00030253,30]
[421177220,1777210244463,-800.0,0.00030253,30]
[421177221,1777210244474,-800.0,0.00030253,30]
[421177222,1777210244486,-800.0,0.00030253,30]
[421177223,1777210244497,-800.0,0.00030253,30]
[421177224,1777210244509,-800.0,0.00030253,30]
[421177225,1777210244520,-800.0,0.00030253,30]
[421177226,1777210244531,-800.0,0.00030253,30]
[421177227,1777210244543,-800.0,0.00030253,30]
[421177228,1777210244554,-803.0,0.00030253,30]
[421177229,1777210244566,-1830.79,0.000303,7]
[421177230,1777210244577,-150.0,0.00030466,30]
[421177231,1777210244589,-1063.40729112,0.00030832,15]
[421177232,1777210244601,-3265.13250192,0.00031,30]
[421177233,1777210244613,-986.88,0.000311,20]
[421177234,1777210244624,-20510.46,0.000311,7]
[421177235,1777210244637,-200.0,0.00031147,3]
[421177236,1777210244648,-1138.12548307,0.000312,2]
[421177237,1777210244661,-314.16280282,0.00031315,2]
[421177238,1777210244673,-695.39793187,0.00031315,2]
[421177239,1777210244684,-557.52,0.0003142,2]
[421177240,1777210244696,-20075.74074071,0.0003143,4]
[421177241,1777210244707,-401.19715659,0.00031441,93]
[421177242,1777210244719,-151.0,0.00031465,30]
[421177243,1777210244730,-153.0,0.00031465,30]
[421177244,1777210244741,-571.0,0.00031465,30]
[421177245,1777210244753,-154.0,0.0003147,30]
[421177246,1777210244764,-152.0,0.0003147,30]
[421177247,1777210244775,-159.0,0.0003147,30]
[421177248,1777210244786,-289.0,0.0003147,30]
[421177249,1777210244798,-685.8,0.000315,7]
[421177250,1777210244809,-156.0,0.00031518,30]
[421177251,1777210244820,-151.0,0.00031518,30]
[421177252,1777210244831,-153.0,0.00031518,30]
[421177253,1777210244842,-153.0,0.00031518,30]
[421177254,1777210244853,-5000.0,0.00031596,15]
[421177255,1777210244865,-1830.79,0.000316,7]
[421177256,1777210244876,-150.0,0.00031781,30]
[421177257,1777210244888,-150.319617,0.00031962,2]
[421177258,1777210244900,-1000.0,0.00032,60]
[421177259,1777210244911,-1000.0,0.00032,60]
[421177260,1777210244922,-162.25551732,0.00032,7]
[421177261,1777210244933,-195.21643836,0.00032151,2]
[421177262,1777210244944,-500.0,0.00032178,60]
[421177263,1777210244955,-500.0,0.00032178,60]
[421177264,1777210244966,-500.0,0.00032178,60]
[421177265,1777210244977,-560.6301137,0.00032178,60]
[421177266,1777210244987,-799.6289083,0.00032178,60]
[421177267,1777210244999,-355.3906146,0.00032178,60]
[421177268,1777210245010,-500.0,0.00032178,60]
[421177269,1777210245021,-500.0,0.00032178,60]
[421177270,1777210245032,-500.0,0.00032178,60]
[421177271,1777210245043,-966.1943787,0.00032178,60]
[421177272,1777210245055,-500.0,0.00032178,60]
[421177273,1777210245066,-500.0,0.00032178,60]
[421177274,1777210245077,-500.0,0.00032178,60]
[421177275,1777210245088,-550.6539799,0.00032178,60]
[421177276,1777210245099,-500.0,0.00032178,60]
[421177277,1777210245110,-500.0,0.00032178,60]
[421177278,1777210245121,-500.0,0.00032178,60]
[421177279,1777210245132,-880.562206,0.00032178,60]
[421177280,1777210245142,-500.0,0.00032178,60]
[421177281,1777210245153,-500.0,0.00032178,60]
[421177282,1777210245164,-738.8640412,0.00032178,60]
[421177283,1777210245175,-862.3223162,0.00032178,60]
[421177284,1777210245186,-624.0487948,0.00032178,60]
[421177285,1777210245198,-264.2421482,0.00032178,60]
[421177286,1777210245208,-268.114616,0.00032178,60]
[421177287,1777210245220,-292.1083462,0.00032178,60]
[421177288,1777210245231,-500.0,0.00032178,60]
[421177289,1777210245241,-500.0,0.00032178,60]
[421177290,1777210245251,-500.0,0.00032178,60]
[421177291,1777210245262,-500.0,0.00032178,60]
[421177292,1777210245272,-500.0,0.00032178,60]
[421177293,1777210245283,-500.0,0.00032178,60]
[421177294,1777210245294,-626.0852517,0.00032178,60]
[421177295,1777210245305,-187.5,0.00032178,60]
[421177296,1777210245315,-270.897287,0.00032178,60]
[421177297,1777210245326,-187.5,0.00032178,60]
[421177298,1777210245337,-169.1245078,0.00032178,60]
[421177299,1777210245348,-187.5,0.00032178,60]
[421177300,1777210245360,-19184.00337145,0.00032186,2]
[421177301,1777210245370,-1800.0,0.00032203,2]
[421177302,1777210245381,-750.0,0.00032203,30]
[421177303,1777210245393,-150.0,0.00032219,2]
[421177304,1777210245404,-152.0,0.0003225,3]
[421177305,1777210245414,-671.6,0.00032319,30]
[421177306,1777210245426,-150.0,0.00032438,30]
[421177307,1777210245436,-151.0,0.00032465,30]
[421177308,1777210245447,-153.0,0.00032465,30]
[421177309,1777210245458,-571.0,0.00032465,30]
[421177310,1777210245469,-154.0,0.0003247,30]
[421177311,1777210245480,-152.0,0.0003247,30]
[421177312,1777210245491,-159.0,0.0003247,30]
[421177313,1777210245503,-289.0,0.0003247,30]
[421177314,1777210245513,-156.0,0.00032518,30]
[421177315,1777210245524,-151.0,0.00032518,30]
[421177316,1777210245535,-153.0,0.00032518,30]
[421177317,1777210245546,-153.0,0.00032518,30]
[421177318,1777210245557,-500.0,0.0003255,7]
[421177319,1777210245568,-20510.46,0.000326,7]
[421177320,1777210245580,-1830.79,0.000326,7]
[421177321,1777210245591,-500.0,0.00032869,15]
[421177322,1777210245602,-3145.75850006,0.0003287,7]
[421177323,1777210245614,-150.15,0.00032877,2]
[421177324,1777210245625,-150.02,0.00032877,2]
[421177325,1777210245636,-150.02,0.00032877,2]
[421177326,1777210245647,-150.02,0.00032877,2]
[421177327,1777210245658,-150.02,0.00032877,2]
[421177329,1777210245669,-150.02,0.00032877,2]
[421177330,1777210245680,-150.02,0.00032877,2]
[421177331,1777210245691,-150.02,0.00032877,2]
[421177332,1777210245702,-150.02,0.00032877,2]
[421177333,1777210245713,-150.02,0.00032877,2]
[421177334,1777210245723,-150.02,0.00032877,2]
[421177335,1777210245735,-150.02,0.00032877,2]
[421177336,1777210245746,-150.02,0.00032877,2]
[421177337,1777210246084,-150.02,0.00032877,2]
[421177338,1777210246096,-150.02,0.00032877,2]
[421177339,1777210246108,-150.02,0.00032877,2]
[421177340,1777210246119,-150.02,0.00032877,2]
[421177341,1777210246130,-150.02,0.00032877,2]
[421177342,1777210246142,-150.02,0.00032877,2]
[421177343,1777210246153,-150.02,0.00032877,2]
[421177344,1777210246164,-150.02,0.00032877,2]
[421177345,1777210246175,-150.02,0.00032877,2]
[421177346,1777210246186,-150.02,0.00032877,2]
[421177347,1777210246197,-150.02,0.00032877,2]
[421177348,1777210246208,-150.02,0.00032877,2]
[421177349,1777210246219,-150.02,0.00032877,2]
[421177350,1777210246229,-150.02,0.00032877,2]
[421177351,1777210246241,-150.02,0.00032877,2]
[421177352,1777210246252,-150.02,0.00032877,2]
[421177353,1777210246263,-150.02,0.00032877,2]
[421177354,1777210246275,-150.02,0.00032877,2]
[421177355,1777210246286,-150.02,0.00032877,2]
[421177356,1777210246297,-150.02,0.00032877,2]
[421177357,1777210246309,-150.02,0.00032877,2]
[421177358,1777210246320,-150.02,0.00032877,2]
[421177359,1777210246331,-150.02,0.00032877,2]
[421177360,1777210246342,-150.02,0.00032877,2]
[421177361,1777210246353,-150.02,0.00032877,2]
[421177362,1777210246364,-150.02,0.00032877,2]
[421177363,1777210246376,-150.02,0.00032877,2]
[421177364,1777210246387,-1000.0,0.00032877,10]
[421177365,1777210246398,-1000.0,0.00032877,10]
[421177366,1777210246409,-1000.0,0.00032877,10]
[421177367,1777210246421,-1000.0,0.00032877,10]
[421177368,1777210246431,-1000.0,0.00032877,10]
[421177369,1777210246442,-1000.0,0.00032877,10]
[421177370,1777210246453,-1000.0,0.00032877,10]
[421177371,1777210246463,-1000.0,0.00032877,10]
[421177372,1777210246474,-1000.0,0.00032877,10]
[421177373,1777210246485,-1000.0,0.00032877,10]
[421177374,1777210246496,-1000.0,0.00032877,10]
[421177375,1777210246511,-1000.0,0.00032877,10]
[421177376,1777210246521,-1000.0,0.00032877,10]
[421177377,1777210246532,-1000.0,0.00032877,10]
[421177378,1777210246543,-1000.0,0.00032877,10]
[421177379,1777210246554,-1000.0,0.00032877,10]
[421177380,1777210246565,-1000.0,0.00032877,10]
[421177381,1777210246576,-1000.0,0.00032877,10]
[421177382,1777210246587,-1000.0,0.00032877,10]
[421177383,1777210246600,-1000.0,0.00032877,10]
[421177384,1777210246612,-1000.0,0.00032877,10]
[421177385,1777210246622,-398.0,0.00032877,10]
[421177386,1777210246634,-399.50459251,0.00032877,2]
[421177387,1777210246645,-500.0,0.00032877,2]
[421177389,1777210246656,-150.0,0.00032877,5]
[421177390,1777210246667,-500.0,0.00032877,2]
[421177391,1777210246678,-500.0,0.00032877,2]
[421177392,1777210246689,-500.0,0.00032877,2]
[421177393,1777210246699,-500.0,0.00032877,2]
[421177394,1777210246710,-500.0,0.00032877,2]
[421177395,1777210246721,-500.0,0.00032877,5]
[421177396,1777210246732,-306.0,0.00032877,120]
[421177397,1777210246743,-257.57,0.00032877,120]
[421177398,1777210246754,-663.81,0.000329,120]
[421177399,1777210246765,-337.97,0.000329,120]
[421177400,1777210246776,-370.436004,0.000329,120]
[421177401,1777210246787,-214.42,0.000329,120]
[421177402,1777210246798,-1000.0,0.00032938,2]
[421177403,1777210246809,-1000.0,0.00032938,2]
[421177404,1777210246820,-1000.0,0.00032938,2]
[421177405,1777210246831,-1000.0,0.00032938,2]
[421177406,1777210246841,-1000.0,0.00032938,2]
[421177407,1777210246853,-1000.0,0.0003294,2]
[421177408,1777210246863,-1000.0,0.0003294,2]
[421177409,1777210246874,-1000.0,0.0003294,2]
[421177410,1777210246885,-1000.0,0.0003294,2]
[421177411,1777210246896,-1000.0,0.0003294,2]
[421177412,1777210246907,-5000.0,0.00033,15]
[421177413,1777210246918,-569.051577,0.00033,14]
[421177414,1777210246929,-732.04341393,0.00033067,96]
[421177415,1777210246941,-685.8,0.000331,30]
[421177416,1777210246953,-486.93049033,0.00033221,30]
[421177417,1777210246964,-212.0,0.000333,7]
[421177418,1777210246975,-1566.88166,0.000334,120]
[421177419,1777210246986,-270.53535558,0.00033425,5]
[421177420,1777210247012,-151.0,0.00033465,30]
[421177421,1777210247024,-153.0,0.00033465,30]
[421177422,1777210247036,-571.0,0.00033465,30]
[421177423,1777210247047,-154.0,0.0003347,30]
[421177424,1777210247059,-152.0,0.0003347,30]
[421177425,1777210247070,-159.0,0.0003347,30]
[421177426,1777210247082,-289.0,0.0003347,30]
[421177427,1777210247093,-156.0,0.00033518,30]
[421177428,1777210247104,-151.0,0.00033518,30]
[421177429,1777210247116,-153.0,0.00033518,30]
[421177430,1777210247127,-153.0,0.00033518,30]
[421177431,1777210247139,-257.57,0.00033699,120]
[421177432,1777210247150,-150.0,0.0003383,2]
[421177433,1777210247162,-209.8032625,0.0003395,2]
[421177434,1777210247174,-1830.79,0.00034,30]
[421177435,1777210247186,-721.12765535,0.00034054,2]
[421177436,1777210247198,-1138.12548307,0.000341,2]
[421177437,1777210247210,-195.21643836,0.00034221,2]
[421177438,1777210247221,-19184.00337145,0.000343,2]
[421177439,1777210247232,-747.15,0.00034326,30]
[421177440,1777210247244,-220.19,0.00034326,30]
[421177441,1777210247256,-949.47,0.00034326,30]
[421177442,1777210247268,-150.0,0.00034411,30]
[421177443,1777210247280,-250.0,0.00034429,7]
[421177444,1777210247291,-250.0,0.00034429,7]
[421177445,1777210247303,-250.0,0.00034429,7]
[421177446,1777210247315,-250.0,0.00034429,7]
[421177447,1777210247326,-151.0,0.00034465,30]
[421177448,1777210247337,-153.0,0.00034465,30]
[421177449,1777210247349,-571.0,0.00034465,30]
[421177450,1777210247360,-154.0,0.0003447,30]
[421177451,1777210247371,-152.0,0.0003447,30]
[421177452,1777210247382,-159.0,0.0003447,30]
[421177453,1777210247394,-289.0,0.0003447,30]
[421177454,1777210247405,-433.0,0.0003449,10]
[421177455,1777210247423,-156.0,0.00034518,30]
[421177456,1777210247435,-151.0,0.00034518,30]
[421177457,1777210247447,-153.0,0.00034518,30]
[421177458,1777210247459,-153.0,0.00034518,30]
[421177459,1777210247471,-257.57,0.00034521,120]
[421177460,1777210247483,-411.43374201,0.00034622,120]
[421177461,1777210247495,-1062.88967127,0.00034694,99]
[421177462,1777210247507,-411.43374201,0.00034717,120]
[421177463,1777210247519,-276.0,0.00034724,2]
[421177464,1777210247531,-150.0,0.00034724,2]
[421177465,1777210247542,-204.0,0.00034724,2]
[421177466,1777210247555,-356.73,0.00034794,30]
[421177467,1777210247567,-1500.0,0.00034795,2]
[421177468,1777210247578,-2100.0,0.000348,12]
[421177469,1777210247590,-411.43374201,0.00034811,120]
[421177470,1777210247602,-218.26,0.00034879,7]
[421177471,1777210247613,-500.0,0.00034879,15]
[421177472,1777210247624,-205308.41979805,0.0003488,120]
[421177473,1777210247636,-10000.0,0.000349,2]
[421177474,1777210247648,-2700.0,0.000349,12]
[421177475,1777210247659,-222.06951579,0.000349,2]
[421177476,1777210247670,-189.61830248,0.000349,7]
[421177477,1777210247682,-12436.40041775,0.000349,2]
[421177478,1777210247693,-1830.79,0.000349,30]
[421177479,1777210247705,-411.43374201,0.00034906,120]
[421177480,1777210247717,-5000.0,0.00034961,15]
[421177481,1777210247729,-150.349627,0.00034963,2]
[421177482,1777210247740,-151.63143135,0.0003499,2]
[421177483,1777210247752,-500.0,0.00034999,15]
[421177484,1777210247763,-500.0,0.00034999,15]
[421177485,1777210247776,-500.0,0.00034999,15]
[421177486,1777210247787,-500.0,0.00034999,15]
[421177487,1777210247799,-500.0,0.00034999,15]
[421177488,1777210247811,-500.0,0.00034999,15]
[421177489,1777210247823,-500.0,0.00034999,15]
[421177490,1777210247840,-500.0,0.00034999,15]
[421177491,1777210247852,-42333.07087761,0.00035,120]
[421177492,1777210247864,-19575.47019049,0.00035,30]
[421177493,1777210247876,-340000.0,0.00035,4]
[421177494,1777210247888,-2176.04808164,0.00035,7]
[421177495,1777210247900,-44466.17,0.00035,15]